bitfinex/quotes_BTCUSD_20250716
["timestamp","ask_amount","ask_price","bid_price","bid_amount"]
[1752687613234,0.19956377,119550.0,119540.0,0.68687152]
[1752687617392,0.19956377,119550.0,119540.0,0.66215702]
[1752687620129,0.18502292,119550.0,119540.0,0.7476673]
[1752687620346,0.18502292,119550.0,119540.0,1.7239573]
[1752687620967,0.18502292,119550.0,119540.0,1.74929695]
[1752687626322,0.18502292,119550.0,119540.0,0.65105395]
[1752687626546,0.18502292,119550.0,119540.0,1.74929695]
[1752687627475,0.18502292,119550.0,119540.0,1.92497022]
[1752687627726,0.18502292,119550.0,119540.0,2.38638602]
[1752687627959,0.18502292,119550.0,119540.0,2.40311661]
[1752687628401,0.18502292,119550.0,119540.0,2.39475135]
[1752687628621,0.001,119550.0,119540.0,2.41148138]
[1752687628833,0.02609284,119550.0,119540.0,2.41148138]
[1752687629051,0.01772835,119550.0,119540.0,2.41148138]
[1752687629273,0.02509277,119550.0,119540.0,2.41148138]
[1752687629490,0.20075141,119550.0,119540.0,2.40311647]
[1752687629709,0.19238734,119550.0,119540.0,2.40311647]
[1752687630343,0.18402306,119550.0,119540.0,2.40311647]
[1752687630747,0.18402306,119550.0,119540.0,1.30587347]
[1752687630962,0.01672905,119550.0,119540.0,2.40311647]
[1752687631177,0.18402306,119550.0,119540.0,2.41148138]
[1752687631382,0.19238776,119550.0,119540.0,2.41348138]
[1752687631789,0.19238776,119550.0,119540.0,2.41348152]
[1752687632446,0.17189693,119550.0,119540.0,2.41348152]
[1752687633110,0.18862598,119550.0,119540.0,2.4218465]
[1752687633323,0.01672863,119550.0,119540.0,2.43021141]
[1752687633533,0.02509319,119550.0,119540.0,2.43021141]
[1752687633746,0.20911653,119550.0,119540.0,2.43021141]
[1752687633931,0.02509319,119550.0,119540.0,2.43021141]
[1752687634363,0.01672863,119550.0,119540.0,2.43021141]
[1752687634579,0.02509319,119550.0,119540.0,2.43021141]
[1752687634995,0.1923872,119550.0,119540.0,2.29725141]
[1752687635215,0.19238762,119550.0,119540.0,2.26379135]
[1752687635423,0.19238762,119550.0,119540.0,2.40507661]
[1752687636519,0.00836372,119560.0,119550.0,0.3982]
[1752687636739,0.19237111,119560.0,119550.0,1.72017328]
[1752687636962,0.18400767,119560.0,119550.0,2.35724835]
[1752687637183,0.18400767,119560.0,119550.0,2.37397754]
[1752687637386,0.18400767,119560.0,119550.0,2.38234189]
[1752687638022,0.02509116,119560.0,119550.0,2.39170617]
[1752687638449,0.02509109,119560.0,119550.0,2.40007038]
[1752687638657,0.01672709,119560.0,119550.0,2.40007038]
[1752687638882,0.02509081,119560.0,119550.0,2.40007038]
[1752687639124,0.03345474,119560.0,119550.0,2.39170617]
[1752687639341,0.04181874,119560.0,119550.0,2.39170617]
[1752687639552,0.20073525,119560.0,119550.0,2.37497754]
[1752687639762,0.20073525,119560.0,119550.0,2.38334196]
[1752687639978,0.18400795,119560.0,119550.0,1.90519662]
[1752687640190,0.17564402,119560.0,119550.0,1.26837005]
[1752687640418,0.17564402,119560.0,119550.0,2.37497761]
[1752687640626,0.17564402,119560.0,119550.0,2.3833421]
[1752687642356,0.17564402,119560.0,119550.0,1.89683199]
[1752687642577,0.17564402,119560.0,119550.0,1.58825328]
[1752687642889,0.16728002,119560.0,119550.0,1.66297328]
[1752687642998,0.18389087,119560.0,119550.0,0.001]
[1752687643220,1.18389299,119560.0,119550.0,0.001]
[1752687643455,1.31681299,119560.0,119550.0,0.001]
[1752687644342,0.23255857,119550.0,119540.0,0.02742367]
[1752687644558,0.70437963,119550.0,119540.0,0.62822267]
[1752687644774,0.70757963,119550.0,119540.0,0.96822267]
[1752687646109,0.70857963,119550.0,119540.0,1.21994267]
[1752687646347,0.22113942,119550.0,119540.0,0.99464967]
[1752687646558,0.19323942,119550.0,119540.0,1.13263967]
[1752687646783,0.19323942,119550.0,119540.0,1.60365667]
[1752687647446,0.19323942,119550.0,119540.0,1.60069667]
[1752687647733,0.19323942,119550.0,119540.0,1.46777667]
[1752687647955,0.19323942,119550.0,119540.0,1.35054267]
[1752687648166,0.71992048,119550.0,119540.0,1.14848967]
[1752687648580,0.71992048,119550.0,119540.0,1.12216267]
[1752687648788,0.71992048,119550.0,119540.0,1.30113167]
[1752687648991,0.71992048,119550.0,119540.0,1.27374367]
[1752687649215,0.71992048,119550.0,119540.0,0.89158367]
[1752687649829,0.71992048,119550.0,119540.0,1.34500767]
[1752687650030,0.71992048,119550.0,119540.0,1.29043267]
[1752687650235,0.71992048,119550.0,119540.0,1.25375767]
[1752687650444,0.25013942,119550.0,119540.0,1.19678967]
[1752687650885,0.25013942,119550.0,119540.0,0.50034367]
[1752687651300,0.25013942,119550.0,119540.0,1.59858667]
[1752687651719,0.25013942,119550.0,119540.0,1.60069667]
[1752687652437,0.71992048,119550.0,119540.0,1.19529967]
[1752687652645,0.71992048,119550.0,119540.0,1.16638967]
[1752687652857,0.71992048,119550.0,119540.0,1.03507767]
[1752687653284,0.71992048,119550.0,119540.0,0.90215767]
[1752687653492,0.71992048,119550.0,119540.0,1.03503767]
[1752687653700,0.71992048,119550.0,119540.0,0.90215767]
[1752687654139,0.71992048,119550.0,119540.0,1.03503767]
[1752687654980,0.25013942,119550.0,119540.0,1.03503767]
[1752687655183,0.71992048,119550.0,119540.0,1.03503767]
[1752687655638,0.71992048,119550.0,119520.0,0.53158106]
[1752687655639,0.19859457,119530.0,119520.0,0.00636]
[1752687655867,0.72681563,119530.0,119520.0,0.62540307]
[1752687656082,0.72681563,119530.0,119520.0,0.47636407]
[1752687656291,0.73001563,119530.0,119520.0,0.47636407]
[1752687656758,0.25703457,119530.0,119520.0,0.47636407]
[1752687657232,0.18405372,119530.0,119520.0,1.33583112]
[1752687657467,0.18405372,119530.0,119520.0,1.23275112]
[1752687657685,0.18405372,119530.0,119520.0,1.39403112]
[1752687657906,0.18405372,119530.0,119520.0,1.36563112]
[1752687658124,0.18405372,119530.0,119520.0,1.39593112]
[1752687658399,0.18605372,119530.0,119520.0,1.39593112]
[1752687658599,0.18405372,119530.0,119520.0,1.39593112]
[1752687660588,0.18405372,119530.0,119520.0,2.03304819]
[1752687660813,0.18405372,119530.0,119520.0,1.86571218]
[1752687661242,0.18405372,119530.0,119520.0,1.39593112]
[1752687661902,0.18405372,119530.0,119520.0,1.56326713]
[1752687662196,0.18405372,119530.0,119520.0,1.39593112]
[1752687662422,0.18405372,119530.0,119520.0,1.86571218]
[1752687663291,0.18405372,119530.0,119520.0,1.39593112]
[1752687665481,0.18405372,119530.0,119520.0,1.56326713]
[1752687665698,0.18405372,119530.0,119520.0,2.04141499]
[1752687666200,0.17568797,119530.0,119520.0,1.73283218]
[1752687666446,0.17568797,119530.0,119520.0,1.86571218]
[1752687666892,0.17568797,119530.0,119520.0,2.03304819]
[1752687667110,0.00836575,119530.0,119520.0,1.31428168]
[1752687667330,0.01673122,119530.0,119520.0,2.52412874]
[1752687667547,0.01673122,119530.0,119520.0,2.07945668]
[1752687667767,0.18403888,119540.0,119530.0,0.97585404]
[1752687667978,0.18403888,119540.0,119530.0,1.66613538]
[1752687668192,0.18403888,119540.0,119530.0,1.66909538]
[1752687668644,0.18403888,119540.0,119530.0,1.68582688]
[1752687668844,0.18403888,119540.0,119530.0,1.6774612]
[1752687670135,0.17567376,119540.0,119530.0,1.49340734]
[1752687670351,0.17567376,119540.0,119530.0,1.50177344]
[1752687670563,0.17567376,119540.0,119530.0,1.66072935]
[1752687670776,0.17567376,119540.0,119530.0,1.49340734]
[1752687670983,0.16730843,119540.0,119530.0,1.49340734]
[1752687671210,0.16730843,119540.0,119530.0,1.67746141]
[1752687671417,0.16730843,119540.0,119530.0,1.68582716]
[1752687671632,0.16729401,119550.0,119540.0,0.57347341]
[1752687671839,0.16729401,119550.0,119540.0,1.23224628]
[1752687672041,0.16729401,119550.0,119540.0,1.36508628]
[1752687672242,0.16729401,119550.0,119540.0,1.33498628]
[1752687673738,0.16929401,119550.0,119540.0,1.33498628]
[1752687674647,0.16929401,119550.0,119540.0,1.36378628]
[1752687675088,0.16929401,119550.0,119540.0,0.56342028]
[1752687675297,0.70038507,119550.0,119540.0,1.16937628]
[1752687675515,0.18405372,119530.0,119520.0,0.37144484]
[1752687675761,0.65383478,119530.0,119520.0,1.06513412]
[1752687675987,0.18405372,119530.0,119520.0,0.85797412]
[1752687676214,0.18606372,119530.0,119520.0,0.99582112]
[1752687676435,0.18606372,119530.0,119520.0,1.33582112]
[1752687678142,0.18606372,119530.0,119520.0,0.59195512]
[1752687678357,0.18606372,119530.0,119520.0,1.33582112]
[1752687678982,0.18405372,119530.0,119520.0,1.33582112]
[1752687679411,0.18405372,119530.0,119520.0,1.86200218]
[1752687680479,0.18405372,119530.0,119520.0,1.86300218]
[1752687681566,0.18405372,119530.0,119520.0,1.11913618]
[1752687682059,0.18405372,119530.0,119520.0,1.86300218]
[1752687682352,0.18405372,119530.0,119520.0,1.83798141]
[1752687682799,0.00836575,119530.0,119520.0,2.00531742]
[1752687682987,0.16732048,119540.0,119530.0,0.22432201]
[1752687683225,0.16732048,119540.0,119530.0,1.66137935]
[1752687683473,0.16732048,119540.0,119530.0,1.66974545]
[1752687683682,0.16732048,119540.0,119530.0,1.50242344]
[1752687683868,0.16732048,119540.0,119530.0,1.02427628]
[1752687684076,0.16732048,119540.0,119530.0,1.19996439]
[1752687684485,0.16732048,119540.0,119530.0,1.20833042]
[1752687684688,0.16732048,119540.0,119530.0,1.21669638]
[1752687684904,0.16732048,119540.0,119530.0,1.19996439]
[1752687685314,0.16732048,119540.0,119530.0,0.99487628]
[1752687686059,0.16732048,119540.0,119530.0,1.17056439]
[1752687686470,0.16732048,119540.0,119530.0,1.20863042]
[1752687686879,0.16732048,119540.0,119530.0,1.22536227]
[1752687687086,0.18405093,119540.0,119530.0,1.67841148]
[1752687687784,0.17568581,119540.0,119530.0,1.67004545]
[1752687688388,0.17568581,119540.0,119530.0,1.67841148]
[1752687688606,0.18405093,119540.0,119530.0,1.69514333]
[1752687688878,0.19241633,119540.0,119530.0,1.71960564]
[1752687689085,0.01673045,119540.0,119530.0,1.72797111]
[1752687689287,0.01673003,119540.0,119530.0,1.72797111]
[1752687689462,0.02509529,119540.0,119530.0,1.71123933]
[1752687689873,0.2007687,119540.0,119530.0,1.68614166]
[1752687690045,0.2007687,119540.0,119530.0,1.69450762]
[1752687690238,0.2007687,119540.0,119530.0,1.70287351]
[1752687690451,0.19240379,119540.0,119530.0,1.69450776]
[1752687690735,0.19240379,119540.0,119530.0,0.95900772]
[1752687690961,0.19240379,119540.0,119530.0,1.70287372]
[1752687691175,0.19240379,119540.0,119530.0,1.71123961]
[1752687691386,0.19240379,119540.0,119530.0,1.70287379]
[1752687691800,0.19240379,119540.0,119530.0,1.71960564]
[1752687692218,0.19240379,119540.0,119530.0,1.2163606]
[1752687692404,0.18403867,119540.0,119530.0,1.1866606]
[1752687693263,0.18403867,119540.0,119530.0,1.1590606]
[1752687693470,0.18403867,119540.0,119530.0,0.85893859]
[1752687693679,0.24354867,119540.0,119530.0,0.24489259]
[1752687693897,0.24354867,119540.0,119530.0,0.98875859]
[1752687694108,0.24354867,119540.0,119530.0,0.99169859]
[1752687694849,0.18604867,119540.0,119530.0,0.99169859]
[1752687695274,0.18403867,119540.0,119530.0,0.99169859]
[1752687695912,0.17567341,119540.0,119530.0,0.99169859]
[1752687698540,0.17567341,119540.0,119530.0,1.1590206]
[1752687698788,0.17567341,119540.0,119530.0,1.17575259]
[1752687698989,0.20076884,119540.0,119530.0,1.71109947]
[1752687699198,0.02509543,119540.0,119530.0,1.71109947]
[1752687699403,0.16729401,119550.0,119540.0,0.58123839]
[1752687699621,0.03345824,119550.0,119540.0,2.02364071]
[1752687699837,0.00836435,119550.0,119540.0,1.28271471]
[1752687700081,0.00836435,119550.0,119540.0,2.03494562]
[1752687700308,0.00836414,119550.0,119540.0,2.03494562]
[1752687700523,0.01672842,119550.0,119540.0,2.03594562]
[1752687700741,0.01672877,119550.0,119540.0,2.03594562]
[1752687700959,0.02509291,119550.0,119540.0,2.02758064]
[1752687701163,0.19238692,119550.0,119540.0,2.01921573]
[1752687701369,0.20075162,119550.0,119540.0,1.53270429]
[1752687701595,0.17565871,119550.0,119540.0,1.80757734]
[1752687701831,0.17565871,119550.0,119540.0,1.54106962]
[1752687702047,0.1840232,119550.0,119540.0,1.54943481]
[1752687702659,0.1840232,119550.0,119540.0,1.54943488]
[1752687702854,0.1840232,119550.0,119540.0,1.54106962]
[1752687703225,0.1840232,119550.0,119540.0,2.01085068]
[1752687703433,0.17565871,119550.0,119540.0,2.01085075]
[1752687703634,0.17565871,119550.0,119540.0,1.67485734]
[1752687703635,0.16729401,119550.0,119540.0,1.67485734]
[1752687703906,0.16729401,119550.0,119540.0,1.33445628]
[1752687704137,0.16729401,119550.0,119540.0,1.30815628]
[1752687704323,0.16937401,119550.0,119540.0,1.30815628]
[1752687704520,0.19767401,119550.0,119540.0,1.30815628]
[1752687704723,0.16729401,119550.0,119540.0,1.30815628]
[1752687705526,0.16729401,119550.0,119540.0,1.48382962]
[1752687705732,0.16729401,119550.0,119540.0,2.01567594]
[1752687705886,0.16729401,119550.0,119540.0,2.02404113]
[1752687705887,0.00836442,119550.0,119540.0,2.02404113]
[1752687706257,0.20075183,119550.0,119540.0,2.02404113]
[1752687706676,0.19238762,119550.0,119540.0,2.03240625]
[1752687706801,0.02509319,119550.0,119540.0,2.04077116]
[1752687707010,0.03345782,119550.0,119540.0,2.04077116]
[1752687708194,0.20075183,119550.0,119540.0,2.02404113]
[1752687708410,0.19238762,119550.0,119540.0,2.02404113]
[1752687708620,0.1840232,119550.0,119540.0,2.02404113]
[1752687708835,0.1840232,119550.0,119540.0,2.03240625]
[1752687709041,0.1840232,119550.0,119540.0,2.01567594]
[1752687709474,0.1840232,119550.0,119540.0,2.00731068]
[1752687710534,0.1840232,119550.0,119540.0,2.01563594]
[1752687711037,0.1840232,119550.0,119540.0,1.27176994]
[1752687711243,0.1840232,119550.0,119540.0,2.01563594]
[1752687711410,0.1840232,119550.0,119540.0,1.88299594]
[1752687711568,0.01672919,119550.0,119540.0,2.03236597]
[1752687712117,0.01672891,119550.0,119540.0,2.03236597]
[1752687712534,0.02509354,119550.0,119540.0,2.03236597]
[1752687712740,0.20075225,119550.0,119540.0,2.03236611]
[1752687713144,0.1923879,119550.0,119540.0,2.03236611]
[1752687713346,0.1923879,119550.0,119540.0,2.04073109]
[1752687713561,0.02509291,119550.0,119540.0,2.04073018]
[1752687713766,0.03345747,119550.0,119540.0,2.04073018]
[1752687713978,0.02509298,119550.0,119540.0,2.01563552]
[1752687714194,0.02509298,119550.0,119540.0,2.0156358]
[1752687714603,0.03345754,119550.0,119540.0,1.53748962]
[1752687714793,0.20075155,119550.0,119540.0,2.00727068]
[1752687714999,0.18402306,119550.0,119540.0,1.99890535]
[1752687715225,0.17565857,119550.0,119540.0,1.36181628]
[1752687715421,0.17565857,119550.0,119540.0,2.00727075]
[1752687715680,0.17565857,119550.0,119540.0,1.83996274]
[1752687715891,0.17565857,119550.0,119540.0,2.00727075]
[1752687716309,0.17565857,119550.0,119540.0,2.01563608]
[1752687717343,0.17565857,119550.0,119540.0,1.27177008]
[1752687717551,0.16729401,119550.0,119540.0,1.77685734]
[1752687717769,0.16937401,119550.0,119540.0,1.30707628]
[1752687717973,0.22267401,119550.0,119540.0,1.30707628]
[1752687718389,0.22267401,119550.0,119540.0,1.30413628]
[1752687718574,0.22267401,119550.0,119540.0,1.30197628]
[1752687719182,0.22267401,119550.0,119540.0,1.30397628]
[1752687719450,0.22267401,119550.0,119540.0,1.30709628]
[1752687719658,0.19717401,119550.0,119540.0,1.30709628]
[1752687719839,0.16937401,119550.0,119540.0,1.30709628]
[1752687720289,0.16937401,119550.0,119540.0,1.16937628]
[1752687720509,0.71170592,119550.0,119540.0,0.69897428]
[1752687720728,0.71170592,119550.0,119540.0,1.02378428]
[1752687720936,0.71170592,119550.0,119540.0,1.01328228]
[1752687721172,0.71170592,119550.0,119540.0,0.99688228]
[1752687721396,0.71170592,119550.0,119540.0,0.94528228]
[1752687721605,0.71170592,119550.0,119540.0,1.30093628]
[1752687722132,0.24192486,119550.0,119540.0,1.30093628]
[1752687722333,0.23881486,119550.0,119540.0,1.30093628]
[1752687724001,0.24192486,119550.0,119540.0,1.30093628]
[1752687724423,0.71170592,119550.0,119540.0,1.17640928]
[1752687724629,0.71170592,119550.0,119540.0,0.55707028]
[1752687724842,0.71170592,119550.0,119540.0,1.30093628]
[1752687725260,0.23881486,119550.0,119540.0,1.30093628]
[1752687725909,0.70859592,119550.0,119540.0,1.30093628]
[1752687726727,0.71170592,119550.0,119540.0,1.30093628]
[1752687727404,0.23881486,119550.0,119540.0,1.30093628]
[1752687727618,0.70859592,119550.0,119540.0,1.30093628]
[1752687727829,0.25307931,119540.0,119530.0,0.02446231]
[1752687728049,0.72805037,119540.0,119530.0,0.02446231]
[1752687728268,0.24472882,119530.0,119520.0,0.00348407]
[1752687728494,0.19024352,119520.0,119510.0,0.0004]
[1752687728711,0.71771458,119520.0,119510.0,0.699836]
[1752687729204,0.71771458,119520.0,119510.0,0.480132]
[1752687729407,0.24275822,119510.0,119500.0,0.0004]
[1752687729619,0.25114091,119500.0,119490.0,0.0004]
[1752687729838,0.72300197,119500.0,119490.0,0.744266]
[1752687730048,0.72611197,119500.0,119490.0,0.744266]
[1752687730262,0.72611197,119500.0,119490.0,1.084266]
[1752687731564,0.72611197,119500.0,119490.0,1.10902934]
[1752687732648,0.25633091,119500.0,119490.0,1.10902934]
[1752687732860,0.25833091,119500.0,119490.0,1.10902934]
[1752687733070,0.72811197,119500.0,119490.0,1.10902934]
[1752687733779,0.58468763,119490.0,119480.0,0.0024]
[1752687733998,1.05965869,119490.0,119480.0,0.1523282]
[1752687734215,1.05965869,119490.0,119460.0,0.002]
[1752687734216,0.252387,119470.0,119460.0,0.002]
[1752687734462,1.19667806,119470.0,119460.0,0.002]
[1752687734682,1.19987806,119470.0,119460.0,0.52681713]
[1752687734902,1.19987806,119470.0,119460.0,0.502]
[1752687735115,1.19996189,119470.0,119460.0,0.002]
[1752687735927,1.20196189,119470.0,119460.0,0.002]
[1752687736372,1.06744189,119470.0,119460.0,0.002]
[1752687736510,1.20296189,119470.0,119460.0,1e-08]
[1752687736850,0.73318083,119470.0,119460.0,1e-08]
[1752687737067,1.19307123,119470.0,119460.0,1e-08]
[1752687737491,0.73318083,119470.0,119460.0,1e-08]
[1752687737693,1.19307123,119470.0,119460.0,1e-08]
[1752687738149,0.60066083,119470.0,119460.0,0.0252815]
[1752687738357,0.73318083,119470.0,119460.0,0.0252815]
[1752687738491,1.19307123,119470.0,119460.0,1e-08]
[1752687739339,1.06055123,119470.0,119460.0,1e-08]
[1752687739680,0.59746083,119470.0,119460.0,1e-08]
[1752687739882,0.70312083,119470.0,119460.0,1e-08]
[1752687740097,0.70312083,119470.0,119460.0,0.50000001]
[1752687740394,0.67632083,119470.0,119460.0,0.50000001]
[1752687741005,0.18722998,119470.0,119460.0,0.38530301]
[1752687741205,0.20177083,119470.0,119460.0,0.38530301]
[1752687741343,0.20177083,119470.0,119460.0,0.51786301]
[1752687741555,0.18722998,119470.0,119460.0,0.51786301]
[1752687741762,0.17886003,119470.0,119460.0,0.82389334]
[1752687741997,0.17886003,119470.0,119460.0,0.65647329]
[1752687742386,0.17586003,119470.0,119460.0,0.65647329]
[1752687742582,0.17586003,119470.0,119460.0,0.68187618]
[1752687742776,0.17686003,119470.0,119460.0,0.68187618]
[1752687743039,0.17686003,119470.0,119460.0,0.65507618]
[1752687744254,0.17686003,119470.0,119460.0,0.62877618]
[1752687745883,0.17686003,119470.0,119460.0,0.65657618]
[1752687746663,0.17686003,119470.0,119460.0,0.52401618]
[1752687746882,0.17686003,119470.0,119460.0,0.24860318]
[1752687747046,0.17686003,119470.0,119460.0,0.62873618]
[1752687747241,0.17686003,119470.0,119460.0,0.60333329]
[1752687747493,0.78580128,119470.0,119460.0,1e-08]
[1752687747834,0.81520128,119470.0,119460.0,1e-08]
[1752687748042,0.84110128,119470.0,119460.0,0.25178901]
[1752687748460,0.84110128,119470.0,119460.0,1e-08]
[1752687749598,0.92661156,119470.0,119460.0,1e-08]
[1752687750031,0.1903612,119440.0,119430.0,0.5]
[1752687750217,0.19037592,119430.0,119420.0,0.00644]
[1752687750431,0.65225632,119430.0,119420.0,0.19440428]
[1752687750631,0.65225632,119430.0,119420.0,0.21679325]
[1752687750857,0.65225632,119430.0,119420.0,0.52923428]
[1752687751275,0.65225632,119430.0,119420.0,0.147491]
[1752687751493,0.65225632,119430.0,119420.0,0.00390129]
[1752687751710,0.65225632,119430.0,119420.0,0.14860429]
[1752687751912,0.19236592,119430.0,119420.0,0.48960429]
[1752687752137,0.65225632,119430.0,119420.0,0.44736829]
[1752687752341,0.70765632,119430.0,119420.0,0.00390129]
[1752687752968,0.70765632,119430.0,119410.0,0.0004]
[1752687752969,0.68794019,119420.0,119410.0,0.0004]
[1752687753181,0.36255979,119420.0,119410.0,0.0004]
[1752687753408,0.82565019,119420.0,119410.0,0.0004]
[1752687753612,0.82565019,119420.0,119410.0,0.0250056]
[1752687753817,0.82565019,119420.0,119410.0,0.0004]
[1752687754868,0.82765019,119420.0,119410.0,0.0004]
[1752687755751,0.82765019,119420.0,119410.0,0.3404]
[1752687756793,0.36775979,119420.0,119410.0,0.0004]
[1752687757007,0.82765019,119420.0,119410.0,0.0004]
[1752687758453,0.69513019,119420.0,119410.0,0.0004]
[1752687758665,0.82765019,119420.0,119410.0,0.0004]
[1752687758884,0.69513019,119420.0,119410.0,0.0004]
[1752687759091,0.82765019,119420.0,119410.0,0.0004]
[1752687762415,0.82765019,119420.0,119410.0,0.02609506]
[1752687762622,0.82765019,119420.0,119410.0,0.0004]
[1752687763032,0.70967104,119420.0,119410.0,0.0004]
[1752687763235,0.84219104,119420.0,119410.0,0.0004]
[1752687764463,0.17586451,119410.0,119400.0,0.8434]
[1752687764684,0.84751576,119410.0,119400.0,0.0034]
[1752687766648,0.84751576,119410.0,119400.0,0.02854996]
[1752687766863,0.84751576,119410.0,119400.0,0.0034]
[1752687767082,0.19242536,119410.0,119400.0,0.00556]
[1752687767295,0.78281576,119410.0,119400.0,0.0085]
[1752687767507,0.78483576,119410.0,119400.0,0.0085]
[1752687767718,0.78583576,119410.0,119400.0,0.0085]
[1752687767935,0.78583576,119410.0,119400.0,0.00556]
[1752687768363,0.78583576,119410.0,119400.0,0.0034]
[1752687769107,0.84463576,119410.0,119400.0,0.0034]
[1752687769317,0.84761576,119410.0,119400.0,0.0034]
[1752687770131,0.84761576,119410.0,119400.0,0.02509653]
[1752687770404,0.23467924,119400.0,119390.0,0.3404]
[1752687770553,0.84365049,119400.0,119390.0,0.3404]
[1752687770737,0.84663049,119400.0,119390.0,0.3404]
[1752687771133,0.84663049,119400.0,119390.0,0.0004]
[1752687771342,0.84663049,119400.0,119390.0,0.5004]
[1752687771778,0.84663049,119400.0,119390.0,0.5014]
[1752687772153,0.84663049,119400.0,119390.0,0.001]
[1752687772154,1.30652089,119400.0,119390.0,0.001]
[1752687772545,1.30652089,119400.0,119390.0,1e-08]
[1752687773158,0.23469398,119390.0,119380.0,0.003]
[1752687773361,0.83206438,119390.0,119380.0,0.003]
[1752687774348,0.83256526,119390.0,119380.0,0.003]
[1752687774552,0.83256526,119390.0,119380.0,0.004]
[1752687775275,0.1904643,119370.0,119360.0,0.0034]
[1752687775476,0.7848547,119370.0,119360.0,0.34556]
[1752687775655,0.7848547,119370.0,119360.0,0.3485]
[1752687775863,0.6523747,119370.0,119360.0,0.3485]
[1752687776062,0.7848547,119370.0,119360.0,0.3485]
[1752687776710,0.7848547,119370.0,119360.0,0.0085]
[1752687777112,0.7848547,119370.0,119360.0,0.3485]
[1752687777324,0.7848547,119370.0,119360.0,0.0034]
[1752687777528,0.8169347,119370.0,119360.0,0.0034]
[1752687777728,0.8476347,119370.0,119360.0,0.0034]
[1752687778939,0.3229443,119370.0,119360.0,0.0085]
[1752687779178,0.3229443,119370.0,119360.0,0.038]
[1752687779428,0.3229443,119370.0,119360.0,0.378]
[1752687780234,0.18630027,119370.0,119360.0,0.6590706]
[1752687780484,0.18430055,119370.0,119360.0,1.75178728]
[1752687780730,0.17692345,119370.0,119360.0,1.75178728]
[1752687780985,0.17592345,119370.0,119360.0,1.28419828]
[1752687781245,0.17592345,119370.0,119360.0,0.62399028]
[1752687781505,0.17592345,119370.0,119360.0,0.80145628]
[1752687782466,0.17592345,119370.0,119360.0,0.98577241]
[1752687782713,0.17592345,119370.0,119360.0,0.80145628]
[1752687783193,0.17592345,119370.0,119360.0,0.9690166]
[1752687783456,0.17592345,119370.0,119360.0,0.9857722]
[1752687783670,0.16754628,119370.0,119360.0,0.80145628]
[1752687784119,0.16754628,119370.0,119360.0,0.80983429]
[1752687784362,0.16754628,119370.0,119360.0,0.80145628]
[1752687784816,0.16754628,119370.0,119360.0,0.62499028]
[1752687785052,0.62743668,119370.0,119360.0,0.56749028]
[1752687785286,0.64399753,119370.0,119360.0,0.00656]
[1752687785506,0.64399753,119370.0,119360.0,0.5044]
[1752687785713,0.64399753,119370.0,119360.0,0.8444]
[1752687785968,0.64399753,119370.0,119360.0,0.3444]
[1752687786439,0.64399753,119370.0,119360.0,0.0044]
[1752687786639,0.67279753,119370.0,119360.0,0.0044]
[1752687786844,0.67279753,119370.0,119360.0,0.5044]
[1752687787102,0.67279753,119370.0,119360.0,0.8444]
[1752687787215,0.67279753,119370.0,119360.0,0.3434]
[1752687787415,0.70367753,119370.0,119360.0,0.3434]
[1752687791418,0.70567753,119370.0,119360.0,0.3434]
[1752687791904,0.64599753,119370.0,119360.0,0.3434]
[1752687792114,0.77843753,119370.0,119360.0,0.3434]
[1752687792342,0.64599753,119370.0,119360.0,0.34556]
[1752687792580,0.77843753,119370.0,119360.0,0.3434]
[1752687792812,0.77641753,119370.0,119360.0,0.34556]
[1752687793017,0.77641753,119370.0,119360.0,0.3485]
[1752687793700,0.77848753,119370.0,119360.0,0.3485]
[1752687793939,0.77848753,119370.0,119360.0,0.34556]
[1752687794157,0.77641753,119370.0,119360.0,0.37961]
[1752687794374,0.64397753,119370.0,119360.0,0.37961]
[1752687794603,0.77641753,119370.0,119360.0,0.34881]
[1752687795008,0.18408713,119370.0,119360.0,0.37961]
[1752687795591,0.16954628,119370.0,119360.0,0.62676028]
[1752687796317,0.16954628,119370.0,119360.0,1.51221728]
[1752687796983,0.16754628,119370.0,119360.0,1.51221728]
[1752687800820,0.64197753,119370.0,119360.0,0.43432028]
[1752687801732,0.77441753,119370.0,119360.0,0.58299828]
[1752687801952,0.77441753,119370.0,119360.0,0.61379828]
[1752687802165,0.31452713,119370.0,119360.0,0.61379828]
[1752687803118,0.31452713,119370.0,119360.0,0.64249828]
[1752687804373,0.31452713,119370.0,119360.0,0.43432028]
[1752687804583,0.77648753,119370.0,119360.0,0.42891028]
[1752687804830,0.80538753,119370.0,119360.0,0.3434]
[1752687805039,0.83508753,119370.0,119360.0,0.3434]
[1752687805252,0.77648753,119370.0,119360.0,0.3434]
[1752687807293,0.77648753,119370.0,119360.0,0.34541]
[1752687807968,0.77644753,119370.0,119360.0,0.34541]
[1752687808851,0.64404753,119370.0,119360.0,0.34866]
[1752687809073,0.31448713,119370.0,119360.0,0.34866]
[1752687810168,0.77437753,119370.0,119360.0,0.34866]
[1752687811370,0.83314753,119370.0,119360.0,0.3434]
[1752687811592,0.83615753,119370.0,119360.0,0.3434]
[1752687811811,0.37626713,119370.0,119360.0,0.3434]
[1752687812039,0.31655713,119370.0,119360.0,0.3434]
[1752687812282,0.64197753,119370.0,119360.0,0.3434]
[1752687812515,0.31448713,119370.0,119360.0,0.34866]
[1752687812743,0.31448713,119370.0,119360.0,0.51086]
[1752687812966,0.31648713,119370.0,119360.0,0.51086]
[1752687814782,0.31448713,119370.0,119360.0,0.51086]
[1752687815673,0.31448713,119370.0,119360.0,0.48106]
[1752687816332,0.77437753,119370.0,119360.0,0.48106]
[1752687817638,0.77437753,119370.0,119360.0,0.50573418]
[1752687818658,0.18208713,119370.0,119360.0,0.53383418]
[1752687818883,0.16754628,119370.0,119360.0,2.52921846]
[1752687819099,0.16754628,119370.0,119360.0,2.70515679]
[1752687819551,0.17592352,119370.0,119360.0,5.84213846]
[1752687819777,0.18430055,119370.0,119360.0,5.85051612]
[1752687819998,0.18430055,119370.0,119360.0,5.82538279]
[1752687820224,0.18430055,119370.0,119360.0,5.59663779]
[1752687820448,0.17592352,119370.0,119360.0,4.95478846]
[1752687820670,0.17592352,119370.0,119360.0,0.93113646]
[1752687821575,0.17592352,119370.0,119360.0,0.81139746]
[1752687823624,0.17592352,119370.0,119360.0,0.67899746]
[1752687823856,0.78478477,119370.0,119360.0,0.45884446]
[1752687824095,0.78478477,119370.0,119360.0,0.50248418]
[1752687824329,0.81896477,119370.0,119360.0,0.02807418]
[1752687824581,0.78478477,119370.0,119360.0,0.03012418]
[1752687825107,0.65238477,119370.0,119360.0,0.03012418]
[1752687825321,0.32489437,119370.0,119360.0,0.03012418]
[1752687825549,0.32489437,119370.0,119360.0,0.03324418]
[1752687827489,0.78478477,119370.0,119360.0,0.03324418]
[1752687828123,0.78478477,119370.0,119360.0,0.03012418]
[1752687828542,0.78478477,119370.0,119360.0,0.02807418]
[1752687828543,0.81488477,119370.0,119360.0,0.02807418]
[1752687828717,0.81488477,119370.0,119360.0,0.36807418]